bitfinex/quotes_ETHUSD_20250430
["timestamp","ask_amount","ask_price","bid_price","bid_amount"]
[1746053345714,5.57784243,1792.9,1792.8,4.746]
[1746053349503,5.57817816,1792.7,1792.5,19.1976]
[1746053349721,5.57817816,1792.7,1792.6,4.746]
[1746053349915,5.57817816,1792.7,1792.5,19.1976]
[1746053349916,5.57848934,1792.6,1792.5,19.1976]
[1746053350128,5.57848934,1792.6,1792.5,23.173]
[1746053354647,7.49365609,1792.6,1792.5,4.747]
[1746053354800,5.5797344,1792.2,1792.1,0.7673]
[1746053355165,5.5797344,1792.2,1792.1,4.747]
[1746053355375,5.57956068,1792.3,1792.1,4.747]
[1746053355670,5.58025977,1792.1,1792.0,4.747]
[1746053355871,5.58066856,1791.9,1791.8,18.43]
[1746053356331,5.58066856,1791.9,1791.8,23.177]
[1746053361405,5.58049408,1792.0,1791.8,23.177]
[1746053361674,11.16060234,1792.1,1791.9,0.7953]
[1746053361874,5.58035714,1792.0,1791.9,0.7953]
[1746053363387,5.58066856,1791.9,1791.8,23.177]
[1746053363758,5.58035714,1792.0,1791.8,23.177]
[1746053365680,5.58035714,1792.0,1791.8,26.13566812]
[1746053366595,11.16097421,1792.0,1791.8,26.13566812]
[1746053366886,5.58035714,1792.0,1791.8,23.177]
[1746053367066,5.58066856,1791.9,1791.8,23.177]
[1746053368053,5.58035714,1792.0,1791.8,23.177]
[1746053368475,5.58019971,1792.1,1791.8,23.177]
[1746053368680,5.58019971,1792.1,1791.9,0.7898]
[1746053369292,11.16050933,1792.1,1791.9,0.7898]
[1746053369490,5.58019971,1792.1,1791.9,0.7898]
[1746053370275,11.16052615,1792.1,1791.9,0.7898]
[1746053370698,5.58035714,1792.0,1791.9,0.7898]
[1746053370859,11.16051421,1792.1,1791.9,0.7898]
[1746053371192,5.58035714,1792.0,1791.9,0.7898]
[1746053371760,5.58066856,1791.9,1791.8,4.747]
[1746053372587,11.16160643,1791.9,1791.7,0.7898]
[1746053372792,5.58066856,1791.9,1791.8,4.728]
[1746053373599,6.78002528,1791.9,1791.8,4.728]
[1746053374679,5.58146308,1791.7,1791.5,0.7898]
[1746053374867,5.58146308,1791.7,1791.6,4.728]
[1746053376095,8.57983499,1792.2,1791.6,4.728]
[1746053376096,0.7989,1793.5,1792.3,0.55]
[1746053376262,0.7989,1793.5,1792.9,5.57732571]
[1746053376467,5.57615718,1793.4,1793.0,4.729]
[1746053376664,0.55761572,1793.3,1793.0,4.729]
[1746053376864,6.13402932,1793.3,1793.0,4.729]
[1746053377100,5.57554499,1793.6,1793.1,6.38059744]
[1746053377403,5.57587269,1793.5,1793.1,0.8039]
[1746053377708,5.57602876,1793.4,1793.1,0.8039]
[1746053378199,5.57587408,1793.5,1793.1,0.8039]
[1746053378400,11.15181927,1793.5,1793.1,0.8039]
[1746053378705,11.15182019,1793.5,1793.1,0.8039]
[1746053378905,5.57587408,1793.5,1793.1,0.8039]
[1746053379115,5.57587408,1793.5,1793.1,6.38072898]
[1746053379414,6.36670834,1793.8,1793.3,5.57620747]
[1746053379571,5.57521481,1793.7,1793.4,4.728]
[1746053381210,5.57538329,1793.6,1793.4,4.728]
[1746053381446,5.57583339,1793.5,1793.1,6.79588659]
[1746053381592,5.57583339,1793.5,1793.2,4.728]
[1746053381916,6.69095506,1793.5,1793.2,4.728]
[1746053384229,1.11512167,1793.5,1793.2,4.728]
[1746053384517,5.57569395,1793.5,1793.2,10.30453448]
[1746053384685,5.57571326,1793.5,1793.2,10.30453448]
[1746053385186,5.57557467,1793.6,1793.2,10.30451492]
[1746053385391,5.57557467,1793.6,1793.3,5.57630079]
[1746053385933,5.57557467,1793.6,1793.3,9.87630079]
[1746053388231,5.57557467,1793.6,1793.3,4.3]
[1746053388732,5.57557467,1793.6,1793.3,9.87625116]
[1746053389136,5.57557467,1793.6,1793.3,4.3]
[1746053389299,5.57571106,1793.5,1793.3,4.3]
[1746053389502,5.57571106,1793.5,1793.2,10.30439135]
[1746053389799,5.57571106,1793.5,1793.2,12.01442068]
[1746053389991,5.57559681,1793.6,1793.2,16.31442068]
[1746053390623,11.15123018,1793.6,1793.2,16.31442068]
[1746053390927,5.57559681,1793.6,1793.2,16.31442068]
[1746053391326,5.57525752,1793.7,1793.2,16.31442068]
[1746053391503,5.57539625,1793.6,1793.3,7.20765447]
[1746053391923,5.57539625,1793.6,1793.3,1.63144207]
[1746053392126,5.57539625,1793.6,1793.3,11.50772232]
[1746053393628,6.8818,1793.8,1793.3,5.93144207]
[1746053393629,5.57583802,1793.5,1793.3,5.93144207]
[1746053393827,5.57593706,1793.5,1793.2,4.728]
[1746053394530,5.57631182,1793.3,1793.2,4.728]
[1746053398258,5.57724484,1793.0,1792.9,4.736]
[1746053398564,5.57750096,1793.0,1792.9,4.736]
[1746053400367,5.57704596,1793.1,1792.9,4.736]
[1746053401159,6.32914484,1793.0,1792.9,4.736]
[1746053404272,11.66678986,1793.2,1792.9,5.539]
[1746053404569,0.5,1793.3,1792.9,11.17229139]
[1746053404874,0.5,1793.3,1793.0,5.5771185]
[1746053405031,0.5,1793.3,1793.1,5.57690522]
[1746053405378,6.07646007,1793.3,1793.1,1.54540237]
[1746053405557,6.07646007,1793.3,1793.0,5.0596]
[1746053405941,0.5,1793.3,1793.0,5.0596]
[1746053406154,0.5,1793.3,1793.0,10.63674595]
[1746053407471,0.5,1793.3,1793.2,6.34972279]
[1746053408333,0.5,1793.3,1793.2,6.40547854]
[1746053409035,0.5,1793.3,1793.2,6.34972279]
[1746053409236,0.5,1793.3,1793.2,11.8423756]
[1746053421082,0.5,1793.3,1793.2,16.5773756]
[1746053442288,0.5,1793.3,1793.2,19.5773756]
[1746053442833,0.5,1793.3,1793.2,20.1273756]
[1746053453722,0.816,1793.9,1793.8,5.57462667]
[1746053453903,0.816,1793.9,1793.8,10.31162667]
[1746053454557,0.816,1793.9,1793.8,14.61162667]
[1746053454875,5.5735189,1794.2,1793.8,14.61162667]
[1746053454876,0.816,1794.1,1794.0,5.574136]
[1746053456692,0.7635,1794.4,1794.1,5.57351499]
[1746053456847,0.7635,1794.4,1794.2,4.737]
[1746053457055,6.33647594,1794.4,1794.2,4.737]
[1746053457252,6.33647594,1794.4,1794.2,9.037]
[1746053457456,0.7635,1794.4,1794.2,9.037]
[1746053459858,0.7635,1794.4,1794.2,14.61049403]
[1746053460056,0.7635,1794.4,1794.3,5.57320403]
[1746053460563,0.7635,1794.4,1794.3,9.87320403]
[1746053463329,0.7635,1794.4,1794.3,9.9289295]
[1746053463830,1.2712,1794.6,1794.3,15.50198252]
[1746053464067,1.2712,1794.6,1794.3,9.87305302]
[1746053464288,1.2712,1794.6,1794.3,12.09323442]
[1746053464631,1.2712,1794.6,1794.3,12.09316264]
[1746053465129,1.2712,1794.6,1794.3,17.66614544]
[1746053465331,1.2712,1794.6,1794.3,12.09316264]
[1746053465878,1.2712,1794.6,1794.4,5.57283465]
[1746053466180,1.2712,1794.6,1794.5,0.55728347]
[1746053466527,0.5,1794.6,1794.5,0.55728347]
[1746053467054,0.5,1794.6,1794.5,6.12986636]
[1746053469849,0.5,1794.6,1794.5,6.53806719]
[1746053470053,0.5,1794.6,1794.5,10.83806719]
[1746053473775,0.5,1794.6,1794.5,10.89378379]
[1746053474075,0.5,1794.6,1794.5,10.83806719]
[1746053475353,0.5,1794.6,1794.5,15.52806719]
[1746053479894,6.88047237,1794.6,1794.5,0.40820083]
[1746053480065,6.88047237,1794.6,1794.5,4.69]
[1746053480779,0.8057,1794.3,1794.1,4.3]
[1746053481086,6.37908519,1794.3,1794.2,4.69]
[1746053481757,0.7723,1794.1,1794.0,18.418]
[1746053481959,6.34612531,1794.1,1794.0,23.109]
[1746053482261,6.34612531,1794.1,1794.0,23.51706023]
[1746053482462,6.34612531,1794.1,1794.0,23.109]
[1746053486886,0.7723,1794.1,1794.0,23.109]
[1746053487196,6.34612531,1794.1,1794.0,23.109]
[1746053495283,6.34612531,1794.1,1794.0,23.088]
[1746053497077,7.59761036,1794.1,1794.0,23.088]
[1746053497393,7.59761036,1794.1,1794.0,4.67]
[1746053499118,6.40562531,1794.1,1794.0,4.67]
[1746053499309,5.57382531,1794.1,1794.0,4.67]
[1746053502604,6.39252531,1794.1,1794.0,4.67]
[1746053508412,11.14746696,1794.2,1794.0,4.67]
[1746053508612,5.57321404,1794.3,1794.0,4.67]
[1746053508815,5.57321404,1794.3,1794.1,0.467]
[1746053509336,11.14620489,1794.4,1794.1,0.467]
[1746053509740,5.57323511,1794.3,1794.1,0.467]
[1746053510807,5.57382531,1794.1,1794.0,8.97]
[1746053511043,5.57382531,1794.1,1794.0,4.67]
[1746053511433,5.57382531,1794.1,1794.0,8.97]
[1746053512743,5.57427999,1794.0,1793.8,0.40993944]
[1746053512953,5.57427999,1794.0,1793.9,4.67]
[1746053514049,5.57382531,1794.1,1793.9,4.67]
[1746053514953,5.57542902,1793.6,1793.4,26.84484657]
[1746053515239,5.57568999,1793.5,1793.4,26.84484657]
[1746053515751,6.35012902,1793.6,1793.4,23.087]
[1746053515910,5.57568999,1793.5,1793.4,23.087]
[1746053516347,5.57568999,1793.5,1793.4,27.387]
[1746053516659,5.57568999,1793.5,1793.4,27.80701607]
[1746053516885,5.57568999,1793.5,1793.4,23.087]
[1746053518999,5.57600089,1793.4,1793.3,3.75784657]
[1746053519381,5.57679065,1793.2,1793.0,5.5005]
[1746053519548,5.57679065,1793.2,1793.0,6.05055]
[1746053519985,5.57724484,1793.0,1792.9,0.41017718]
[1746053520187,5.57724484,1793.0,1792.8,4.58734657]
[1746053520764,5.57724484,1793.0,1792.8,5.01372652]
[1746053522570,5.57724484,1793.0,1792.8,1.25587995]
[1746053522891,5.57755591,1792.9,1792.8,1.25587995]
[1746053523453,5.57746804,1793.0,1792.8,1.25587995]
[1746053523648,5.57711761,1793.1,1792.8,1.87403132]
[1746053523883,5.57726597,1793.0,1792.8,1.39187917]
[1746053524263,5.57726597,1793.0,1792.8,1.81454414]
[1746053526335,5.57726597,1793.0,1792.9,4.3]
[1746053528872,5.57726597,1793.0,1792.8,1.81454414]
[1746053529155,5.57755591,1792.9,1792.8,0.42266497]
[1746053529307,5.57786702,1792.8,1792.7,4.671]
[1746053529620,5.57771387,1792.9,1792.7,4.671]
[1746053530509,5.57771387,1792.9,1792.8,4.3]
[1746053531143,5.57771387,1792.9,1792.8,4.70916249]
[1746053538178,5.57771387,1792.9,1792.8,4.3]
[1746053538396,5.57736888,1793.0,1792.8,4.3]
[1746053538595,5.57726707,1793.0,1792.8,5.1971]
[1746053539900,5.57726707,1793.0,1792.8,5.61439265]
[1746053544017,11.15477486,1793.0,1792.8,5.61439265]
[1746053544215,5.57755591,1792.9,1792.8,5.61439265]
[1746053547840,5.57755591,1792.9,1792.8,4.71729265]
[1746053550844,5.57755591,1792.9,1792.8,9.40329265]
[1746053552660,6.36862775,1793.2,1792.9,5.57739464]
[1746053552661,6.3687296,1793.2,1792.9,5.57739464]
[1746053552802,5.5767768,1793.2,1792.9,0.8019]
[1746053553251,11.15366811,1793.2,1792.9,0.8019]
[1746053553556,11.15366811,1793.2,1793.0,4.3]
[1746053553855,5.5767768,1793.2,1793.0,4.3]
[1746053554155,11.15364715,1793.2,1793.0,4.3]
[1746053554311,5.5767768,1793.2,1793.0,4.3]
[1746053554506,11.15366041,1793.2,1793.0,4.3]
[1746053554711,5.5767768,1793.2,1793.0,4.3]
[1746053554915,5.5767768,1793.2,1793.0,5.48833637]
[1746053555308,0.7904,1793.4,1793.0,5.48833637]
[1746053555507,5.57647594,1793.3,1793.0,5.48833637]
[1746053555776,5.57647594,1793.3,1793.0,11.0655716]
[1746053556276,5.57647594,1793.3,1793.0,5.48833637]
[1746053556578,5.57647594,1793.3,1793.1,0.54883364]
[1746053557133,5.57647594,1793.3,1793.1,4.84883364]
[1746053559161,5.57662279,1793.2,1793.1,4.3]
[1746053559779,5.57647594,1793.3,1793.1,4.3]
[1746053560273,6.36659574,1793.4,1793.1,4.3]
[1746053560571,5.57619574,1793.4,1793.1,4.3]
[1746053561250,11.15246457,1793.4,1793.1,4.3]
[1746053561768,11.15244278,1793.4,1793.1,4.3]
[1746053562467,5.57634143,1793.3,1793.1,4.3]
[1746053562869,5.57619574,1793.4,1793.1,4.3]
[1746053563176,11.15242467,1793.4,1793.1,4.3]
[1746053563966,5.57619574,1793.4,1793.1,4.3]
[1746053564170,11.15243575,1793.4,1793.1,4.3]
[1746053564373,5.57619574,1793.4,1793.1,4.3]
[1746053565168,11.15245937,1793.4,1793.1,4.3]
[1746053566572,5.57619574,1793.4,1793.1,4.3]
[1746053566880,11.15245523,1793.4,1793.0,6.34484741]
[1746053567074,11.15245523,1793.4,1793.0,7.53707101]
[1746053567274,11.15245523,1793.4,1793.0,11.83707101]
[1746053567479,5.57619574,1793.4,1793.0,11.83707101]
[1746053567874,11.15245878,1793.4,1793.0,11.83707101]
[1746053568274,5.57619574,1793.4,1793.0,11.83707101]
[1746053568477,5.57619574,1793.4,1793.1,1.1837071]
[1746053568785,5.57619574,1793.4,1793.2,4.66]
[1746053569143,5.57619574,1793.4,1793.2,8.96]
[1746053571263,11.1525048,1793.4,1793.2,8.96]
[1746053571467,5.57619574,1793.4,1793.2,4.66]
[1746053571994,5.57631182,1793.3,1793.2,4.66]
[1746053572177,5.57619574,1793.4,1793.2,4.66]
[1746053572378,11.15244628,1793.4,1793.2,4.66]
[1746053572787,5.57619574,1793.4,1793.2,4.66]
[1746053574191,5.57631182,1793.3,1793.2,4.66]
[1746053575353,11.15242233,1793.4,1793.2,4.66]
[1746053575554,11.15242233,1793.4,1793.2,8.96]
[1746053577414,5.5769478,1793.1,1792.8,5.00643922]
[1746053577694,5.57755591,1792.9,1792.8,3.75784657]
[1746053578992,5.57724484,1793.0,1792.8,3.75784657]
[1746053580483,6.39600497,1793.1,1792.8,3.75784657]
[1746053580683,5.57734154,1793.0,1792.8,3.75784657]
[1746053582079,5.57734154,1793.0,1792.8,8.05784657]
[1746053582703,5.57734154,1793.0,1792.8,4.3]
[1746053583604,6.3960247,1793.1,1792.8,4.3]
[1746053583899,13.22180459,1793.1,1792.8,4.3]
[1746053585003,5.57727629,1793.0,1792.8,4.3]
[1746053585471,5.57810486,1792.8,1792.6,5.07366715]
[1746053585671,6.37760486,1792.8,1792.6,5.07366715]
[1746053585884,6.37760486,1792.8,1792.6,9.37366715]
[1746053586805,6.37760486,1792.8,1792.6,8.96]
[1746053588513,6.37277307,1793.0,1792.6,10.23836872]
[1746053588718,5.5771439,1793.1,1792.6,8.25617584]
[1746053589017,5.5772605,1793.0,1792.6,13.77871269]
[1746053589390,5.57792162,1792.8,1792.6,4.66]
[1746053589824,5.57784078,1792.9,1792.6,5.08223258]
[1746053589990,11.15568038,1792.9,1792.6,5.08223258]
[1746053590192,5.5778396,1792.9,1792.6,5.08223258]
[1746053590515,5.57786827,1792.8,1792.6,5.08223258]
[1746053590715,0.7954,1793.0,1792.6,7.51332584]
[1746053591010,5.57766233,1792.9,1792.6,10.66071865]
[1746053591515,6.34783639,1793.0,1792.6,10.66071865]
[1746053592518,11.92534333,1793.0,1792.6,10.66071865]
[1746053592684,5.57755809,1792.9,1792.6,10.66071865]
[1746053594014,5.57743639,1793.0,1792.6,10.66071865]
[1746053594215,5.57743639,1793.0,1792.6,12.41819518]
[1746053594517,5.57743639,1793.0,1792.6,12.36219055]
[1746053594702,5.57743639,1793.0,1792.7,0.7777]
[1746053596019,0.7704,1793.2,1792.7,6.35576329]
[1746053596224,5.57717462,1793.1,1792.7,6.35576329]
[1746053596412,5.57717462,1793.1,1792.7,8.22755867]
[1746053596710,5.57733978,1793.0,1792.7,8.22755867]
[1746053597227,5.57717462,1793.1,1792.7,8.22755867]
[1746053597430,6.388527,1793.3,1792.9,0.7942]
[1746053597594,5.57672298,1793.2,1793.0,4.656]
[1746053598006,11.96508679,1793.3,1793.0,4.656]
[1746053598320,11.9651404,1793.3,1793.0,4.656]
[1746053599125,5.57662325,1793.2,1793.0,4.656]
[1746053599323,5.57662325,1793.2,1793.0,5.75875986]
[1746053599693,5.57662325,1793.2,1793.0,4.656]
[1746053607300,5.576427,1793.3,1793.0,4.656]
[1746053609724,5.57673927,1793.2,1793.0,4.656]
[1746053614713,11.15244182,1793.4,1793.1,0.8298]
[1746053614936,11.15244182,1793.4,1793.1,1.93608962]
[1746053615138,5.57634367,1793.3,1793.1,1.93608962]
[1746053619446,5.57615667,1793.4,1793.1,1.93608962]
[1746053619652,5.57632463,1793.3,1793.1,1.93608962]
[1746053621260,5.57615667,1793.4,1793.1,1.93608962]
[1746053622222,11.15238815,1793.4,1793.1,1.93608962]
[1746053624068,5.57582268,1793.5,1793.2,5.57658565]
[1746053624224,5.57582268,1793.5,1793.2,6.32785318]
[1746053624840,5.57582268,1793.5,1793.3,4.3]
[1746053625045,5.57582268,1793.5,1793.4,4.655]
[1746053627024,5.57543593,1793.6,1793.4,4.655]
[1746053628254,11.15109411,1793.6,1793.4,4.655]
[1746053628558,5.57543593,1793.6,1793.4,4.655]
[1746053628960,5.57568999,1793.5,1793.4,4.655]
[1746053630035,5.57543593,1793.6,1793.4,4.655]
[1746053630236,5.57568999,1793.5,1793.4,4.655]
[1746053631759,5.57543593,1793.6,1793.4,4.655]
[1746053631943,5.57519729,1793.7,1793.4,6.3576]
[1746053632148,6.40150481,1793.8,1793.4,11.93358462]
[1746053632543,11.97649042,1793.8,1793.5,4.3]
[1746053632743,6.40150481,1793.8,1793.5,4.3]
[1746053632950,11.97652836,1793.8,1793.5,4.3]
[1746053633126,11.97652836,1793.8,1793.5,5.92335846]
[1746053633528,11.14992836,1793.8,1793.5,5.92335846]
[1746053633859,5.57507888,1793.7,1793.5,5.92335846]
[1746053634054,5.57457539,1793.9,1793.5,11.49889582]
[1746053634459,5.57494827,1793.8,1793.5,5.92335846]
[1746053634662,5.57494827,1793.8,1793.6,0.59233585]
[1746053635734,5.57457539,1793.9,1793.6,0.59233585]
[1746053635735,11.14933005,1793.9,1793.6,0.59233585]
[1746053636127,5.5747907,1793.8,1793.6,4.89233585]
[1746053636765,5.57457539,1793.9,1793.6,4.89233585]
[1746053636972,11.14928299,1793.9,1793.6,4.89233585]
[1746053637272,5.57475749,1793.8,1793.7,0.48923359]
[1746053637662,0.8266,1794.0,1793.6,4.89233585]
[1746053637853,6.40088473,1794.0,1793.6,11.29166752]
[1746053638025,11.97529214,1794.0,1793.6,11.29166752]
[1746053638659,6.40088473,1794.0,1793.7,5.5750565]
[1746053638867,6.40088473,1794.0,1793.8,4.654]
[1746053642173,0.8266,1794.0,1793.8,4.654]
[1746053643959,6.40078097,1794.0,1793.8,4.654]
[1746053644770,6.40078097,1794.0,1793.8,8.954]
[1746053645332,6.40078097,1794.0,1793.8,4.654]
[1746053645867,0.8266,1794.0,1793.8,4.654]
[1746053646871,5.57414293,1794.0,1793.8,4.654]
[1746053648284,11.66337443,1794.3,1793.9,0.7596]
[1746053648489,5.57353104,1794.2,1793.9,6.33387471]
[1746053648783,5.57353104,1794.2,1793.9,10.63387471]
[1746053649367,5.57353104,1794.2,1793.9,5.0596]
[1746053649592,5.57385005,1794.1,1793.9,4.3]
[1746053649755,11.14728176,1794.2,1793.9,4.3]
[1746053649956,5.57353104,1794.2,1793.9,4.3]
[1746053650155,0.8008,1794.6,1794.0,0.8195]
[1746053650367,5.57319503,1794.4,1794.0,6.39348347]
[1746053650593,5.57315532,1794.4,1794.0,6.39348347]
[1746053650888,5.57323852,1794.3,1794.1,4.3]
[1746053651075,5.57323852,1794.3,1794.2,4.652]
[1746053654383,6.38483852,1794.3,1794.2,4.652]
[1746053654771,5.57401866,1794.1,1793.8,0.41746199]
[1746053654971,5.57401866,1794.1,1794.0,4.652]
[1746053655668,5.57506752,1793.8,1793.5,4.97111318]
[1746053655882,5.57506752,1793.8,1793.6,4.652]
[1746053657185,5.57461805,1793.9,1793.6,4.652]
[1746053657385,5.57461805,1793.9,1793.6,10.22736469]
[1746053657802,6.3858708,1794.0,1793.6,10.22736469]
[1746053658015,5.5742708,1794.0,1793.8,0.7675]
[1746053658174,5.57399841,1794.1,1793.8,0.7675]
[1746053658376,11.14809454,1794.1,1793.8,0.7675]
[1746053658578,5.57399841,1794.1,1793.8,0.7675]
[1746053658881,5.57463658,1793.9,1793.6,5.4195]
[1746053659082,5.57477279,1793.8,1793.6,5.4195]
[1746053659286,5.57463658,1793.9,1793.6,5.4195]
[1746053659511,5.57463658,1793.9,1793.6,10.99477543]
[1746053662611,5.57463658,1793.9,1793.7,4.3]
[1746053663108,6.36602685,1794.0,1793.7,4.3]
[1746053663307,6.36602685,1794.0,1793.7,9.8749988]
[1746053663702,5.57432685,1794.0,1793.7,9.8749988]
[1746053663879,5.57432685,1794.0,1793.7,11.96196897]
[1746053664218,5.57432685,1794.0,1793.7,6.38697017]
[1746053664403,5.57432685,1794.0,1793.7,4.3]
[1746053667285,5.57432685,1794.0,1793.7,9.87501175]
[1746053668218,5.57447879,1793.9,1793.7,4.3]
[1746053668383,5.57432685,1794.0,1793.7,4.3]
[1746053669397,5.57432685,1794.0,1793.6,10.99465542]
[1746053669614,6.32920097,1793.9,1793.5,1.20396661]
[1746053669916,5.57484659,1793.8,1793.6,4.652]
[1746053671218,11.90389577,1793.9,1793.6,4.652]
[1746053671388,5.57490806,1793.8,1793.6,4.652]
[1746053672028,5.57430599,1794.0,1793.6,10.22725138]
[1746053672523,11.14868541,1794.0,1793.6,10.22725138]
[1746053672718,5.57430599,1794.0,1793.7,5.57505939]
[1746053672900,5.57430599,1794.0,1793.7,6.36255939]
[1746053673096,5.57387963,1794.1,1793.7,6.36237408]
[1746053673515,5.57426975,1794.0,1793.8,4.3]
[1746053674549,0.8019,1795.0,1793.9,0.8074]
[1746053674693,0.8019,1795.0,1794.2,0.8074]
[1746053674888,0.8019,1795.0,1794.5,6.37996952]
[1746053674889,6.3730501,1795.0,1794.5,6.37996952]
[1746053675118,5.57143744,1794.9,1794.6,8.95]
[1746053676301,5.57196188,1794.7,1794.6,8.95]
[1746053683215,5.57196188,1794.7,1794.6,4.65]
[1746053685333,7.46753628,1794.7,1794.6,4.65]
[1746053688965,5.57178213,1794.8,1794.6,4.65]
[1746053689149,5.57196188,1794.7,1794.6,4.65]
[1746053693257,5.57196188,1794.7,1794.6,8.95]
[1746053695241,5.57196188,1794.7,1794.6,4.65]
[1746053700460,5.57196188,1794.7,1794.6,5.4553]
[1746053701443,5.57196188,1794.7,1794.6,4.65]
[1746053704882,5.57178213,1794.8,1794.6,4.65]
[1746053705083,5.57178213,1794.8,1794.7,4.648]
[1746053707694,5.57148343,1794.9,1794.7,4.648]
[1746053707992,5.57126486,1795.0,1794.7,5.9139]
[1746053709200,5.57091781,1795.1,1794.7,11.48582859]
[1746053709561,11.1419333,1795.1,1794.7,11.48582859]
[1746053709998,5.57103217,1795.0,1794.7,11.48582859]
[1746053710692,5.57091781,1795.1,1794.8,1.14858286]
[1746053711076,11.14188105,1795.1,1794.8,1.14858286]
[1746053711281,5.57091781,1795.1,1794.8,1.14858286]
[1746053711482,5.57017006,1795.3,1794.9,6.39422007]
[1746053711800,5.57050413,1795.2,1795.0,0.63942201]
[1746053711952,5.57050413,1795.2,1795.1,4.647]
[1746053712557,5.57031141,1795.3,1795.1,4.647]
[1746053712792,5.57040998,1795.2,1795.1,4.647]
[1746053717284,5.57031141,1795.3,1795.1,4.647]
[1746053717485,5.57031141,1795.3,1795.1,5.9086]
[1746053717693,3.0,1795.7,1795.1,5.9086]
[1746053717694,5.56848436,1795.9,1795.2,0.7969]
[1746053717904,5.56891264,1795.7,1795.3,5.56982402]
[1746053718186,5.56891264,1795.7,1795.4,0.5569824]
[1746053718395,5.56891264,1795.7,1795.5,4.646]
[1746053718602,6.35937951,1795.8,1795.5,4.646]
[1746053719289,5.56887169,1795.7,1795.5,4.646]
[1746053720686,5.56916907,1795.6,1795.5,4.646]
[1746053721093,5.56887169,1795.7,1795.5,4.646]
[1746053723080,5.56869795,1795.8,1795.5,4.646]
[1746053723283,11.13754665,1795.8,1795.5,5.84243718]
[1746053723473,5.56891131,1795.7,1795.5,5.84243718]
[1746053723875,5.56869795,1795.8,1795.5,5.84243718]
[1746053724072,5.56869795,1795.8,1795.5,11.41189721]
[1746053724271,5.56869795,1795.8,1795.6,0.7789]
[1746053724494,5.56840949,1795.9,1795.6,0.7789]
[1746053724794,5.56840949,1795.9,1795.6,1.44103372]
[1746053725391,6.37387155,1796.0,1795.6,7.01015078]
[1746053725392,5.56807155,1796.0,1795.6,7.01015078]
[1746053725594,0.8058,1796.4,1795.8,6.34729379]
[1746053725762,0.8058,1796.4,1795.9,4.646]
[1746053725763,5.56727077,1796.3,1795.9,4.646]
[1746053726102,5.56739695,1796.2,1795.9,4.646]
[1746053727791,5.56739695,1796.2,1795.9,10.21421575]
[1746053728198,5.56727077,1796.3,1795.9,10.21421575]
[1746053728371,5.56727077,1796.3,1795.9,4.646]
[1746053728573,5.56741666,1796.2,1795.9,11.9894797]
[1746053728803,5.56741666,1796.2,1795.9,6.42131902]
[1746053730394,11.13495623,1796.2,1795.9,6.42131902]
[1746053730602,5.56764769,1796.1,1795.9,6.42131902]
[1746053731705,5.56741666,1796.2,1795.9,6.42131902]
[1746053732224,5.56741666,1796.2,1795.9,11.9895228]
[1746053733177,5.56761962,1796.1,1795.9,6.42131902]
[1746053733702,5.56741666,1796.2,1796.0,0.7662]
[1746053734907,5.56715617,1796.3,1796.0,0.7662]
[1746053735202,5.56686597,1796.4,1796.1,0.7946]
[1746053736002,5.56651865,1796.5,1796.1,0.7946]
[1746053736197,5.56651865,1796.5,1796.1,6.36203334]
[1746053736402,11.13316945,1796.5,1796.1,6.36203334]
[1746053736703,11.13316945,1796.5,1796.2,0.63620333]
[1746053736905,11.13316945,1796.5,1796.3,4.643]
[1746053737068,5.56651865,1796.5,1796.3,4.643]
[1746053737676,5.56668893,1796.4,1796.3,4.643]
[1746053738687,11.13313749,1796.5,1796.3,4.643]
[1746053738887,5.56668893,1796.4,1796.3,4.643]
[1746053739087,5.56651865,1796.5,1796.3,5.17092033]
[1746053741587,5.5659924,1796.7,1796.4,0.8162]
[1746053741782,11.13199095,1796.7,1796.4,0.8162]
[1746053742112,5.56609752,1796.6,1796.4,0.8162]
[1746053742538,5.5659924,1796.7,1796.4,0.8162]
[1746053744528,5.5673408,1796.8,1796.4,6.38269598]
[1746053744702,5.5673408,1796.8,1796.5,0.6382696]
[1746053744907,0.00173674,1796.8,1796.6,4.3]
[1746053745266,0.00173674,1796.8,1796.7,4.642]
[1746053745404,0.00173674,1796.8,1796.3,0.52792033]
[1746053745405,6.38485944,1796.7,1796.3,0.52792033]
[1746053745600,6.38485944,1796.7,1796.6,4.642]
[1746053746364,5.56642475,1796.5,1796.3,4.3]
[1746053746663,5.56642475,1796.5,1796.4,4.642]
[1746053747439,5.56620838,1796.6,1796.4,4.642]
[1746053748138,5.56637907,1796.5,1796.4,4.642]
[1746053749542,11.13255092,1796.6,1796.4,4.642]
[1746053749747,5.56620838,1796.6,1796.4,4.642]
[1746053750245,11.1325485,1796.6,1796.4,4.642]
[1746053750448,11.1325384,1796.6,1796.4,4.642]
[1746053750743,11.13254048,1796.6,1796.4,4.642]
[1746053750945,5.56637907,1796.5,1796.4,4.642]
[1746053751247,5.56620838,1796.6,1796.4,5.4434]
[1746053751808,0.7634,1796.5,1795.7,3.0]
[1746053752013,5.56792336,1796.1,1795.8,4.642]
[1746053753235,5.56792336,1796.1,1795.9,0.7815]
[1746053753952,5.56627391,1796.6,1796.0,0.7922]
[1746053754159,5.56641796,1796.5,1796.1,5.56737539]
[1746053754310,5.56641796,1796.5,1796.2,5.4342]
[1746053754513,5.56641796,1796.5,1796.2,9.7342]
[1746053755760,6.32522413,1796.4,1796.2,4.642]
[1746053755915,5.56682413,1796.4,1796.2,4.642]
[1746053756342,11.13376447,1796.4,1796.2,4.642]
[1746053756614,5.56699883,1796.3,1796.2,4.642]
[1746053756948,5.56682413,1796.4,1796.2,4.642]
[1746053757132,5.56682413,1796.4,1796.3,4.642]
[1746053758168,11.13379651,1796.4,1796.1,4.3]
[1746053758324,11.13379651,1796.4,1796.2,4.642]
[1746053758655,5.56699883,1796.3,1796.2,4.642]
[1746053759752,5.56699883,1796.3,1796.2,8.942]
[1746053760854,5.56699883,1796.3,1796.2,4.642]
[1746053761151,5.56682413,1796.4,1796.2,4.642]
[1746053761751,11.13375921,1796.4,1796.2,4.642]
[1746053761959,5.56699883,1796.3,1796.2,4.642]
[1746053764638,5.56682413,1796.4,1796.2,4.642]
[1746053765155,11.13379738,1796.4,1796.2,4.642]